bitfinex-derivatives/quotes_ETHF0:USTF0_20250612
["timestamp","ask_amount","ask_price","bid_price","bid_amount"]
[1749700378033,2.86387561,2769.1,2769.0,21.778]
[1749700378737,3.15277561,2769.1,2769.0,21.778]
[1749700379639,1.01102,2769.1,2769.0,21.778]
[1749700379940,3.15277561,2769.1,2769.0,21.778]
[1749700380438,2.43065561,2769.1,2769.0,22.50015]
[1749700380633,0.2889,2769.1,2769.0,22.50015]
[1749700381041,0.2889,2769.1,2769.0,27.50015]
[1749700381236,3.2078,2769.7,2769.6,0.72199]
[1749700381730,3.92977,2769.7,2769.6,0.72199]
[1749700382040,3.92978,2769.7,2769.6,0.72199]
[1749700382240,5.37396433,2769.7,2769.6,0.72199]
[1749700382744,0.72199,2769.6,2769.5,22.49901]
[1749700382940,1.44418433,2769.6,2769.5,22.49901]
[1749700383334,1.44418433,2769.6,2769.0,3.2078]
[1749700383535,0.72215,2769.0,2768.9,1.2122]
[1749700383738,1.44418433,2769.0,2768.9,22.49718]
[1749700384241,2.16633433,2769.0,2768.9,21.775]
[1749700384445,2.16633433,2769.0,2768.9,4.632]
[1749700384646,7.51588994,2769.0,2768.9,21.775]
[1749700385837,7.51588994,2769.0,2768.9,4.632]
[1749700386042,7.51588994,2769.0,2768.9,21.775]
[1749700386544,9.47528994,2769.0,2768.9,4.632]
[1749700386744,7.33353433,2769.0,2768.9,4.632]
[1749700387739,9.4927808,2769.0,2768.9,4.632]
[1749700388048,0.72223,2768.7,2768.6,22.49725]
[1749700388249,2.16641433,2768.7,2768.6,22.49726]
[1749700388449,1.44418433,2768.7,2768.6,22.49726]
[1749700390838,1.44418433,2768.7,2768.6,0.72226]
[1749700391041,1.44418433,2768.7,2768.6,22.49826]
[1749700392548,1.44418433,2768.7,2768.6,27.49826]
[1749700392848,3.2078,2769.3,2769.2,0.7221]
[1749700393049,3.2078,2769.6,2769.4,0.72204]
[1749700393241,0.72203,2769.5,2769.3,41.52206]
[1749700393445,0.72203,2769.5,2769.4,0.72205]
[1749700393647,3.92981,2769.6,2769.5,0.72202]
[1749700393838,3.2078,2769.6,2769.5,0.72202]
[1749700394244,10.0179,2769.6,2768.5,17.141]
[1749700394448,0.72219,2768.9,2768.7,0.72221]
[1749700394648,0.7222,2768.8,2768.5,17.141]
[1749700394853,3.2078,2769.0,2768.6,4.632]
[1749700395050,3.2078,2769.0,2768.9,0.72218]
[1749700396655,0.7222,2768.8,2768.7,1.2918]
[1749700396847,3.92996,2769.0,2768.9,0.72218]
[1749700397047,0.72218,2768.9,2768.7,1.2918]
[1749700397248,3.2078,2769.0,2768.9,0.72218]
[1749700397650,4.4835,2769.4,2768.7,3.09737]
[1749700397848,3.2078,2769.4,2769.3,0.72207]
[1749700398152,3.2078,2769.4,2769.3,22.49507]
[1749700405053,0.00541135,2769.8,2769.7,0.72197]
[1749700405258,0.00541135,2769.8,2769.7,5.34897]
[1749700407056,0.00541135,2769.8,2769.7,6.57547]
[1749700407952,3.2078,2770.2,2770.1,0.72186]
[1749700408156,4.65177514,2770.2,2770.1,22.48586]
[1749700408357,5.37361514,2770.2,2770.1,22.48586]
[1749700408759,4.65177514,2770.2,2770.1,22.48586]
[1749700409155,3.2078,2770.2,2770.1,22.48586]
[1749700410155,0.72172,2770.7,2770.5,0.72176]
[1749700410356,0.72172,2770.7,2770.6,21.762]
[1749700410556,2.16548146,2770.7,2770.6,21.762]
[1749700411950,2.16548146,2770.7,2770.6,22.48373]
[1749700412159,2.16548146,2770.7,2770.6,21.762]
[1749700412553,1.44376146,2770.7,2770.6,22.48373]
[1749700412753,2.16547146,2770.7,2770.6,21.762]
[1749700413761,2.16545596,2770.7,2770.6,21.762]
[1749700415054,0.72171,2770.7,2770.6,21.762]
[1749700415254,2.16547776,2770.7,2770.6,21.762]
[1749700415563,0.72171,2770.7,2770.6,21.762]
[1749700416266,0.72171,2770.7,2770.6,21.8240172]
[1749700417061,0.72171,2770.7,2770.6,0.0620172]
[1749700417264,0.72181,2770.3,2770.2,0.72182]
[1749700417466,0.72181,2770.3,2770.2,22.47882]
[1749700418465,0.72181,2770.3,2770.2,4.626]
[1749700418664,0.72181,2770.3,2770.2,21.757]
[1749700419258,0.72181,2770.3,2770.2,4.626]
[1749700419662,3.15171,2770.3,2770.2,4.626]
[1749700419963,0.6445,2770.3,2770.2,5.34784]
[1749700423772,0.72177,2770.5,2770.4,0.72177]
[1749700423972,1.32114,2770.6,2770.5,0.72176]
[1749700424166,2.04318561,2770.6,2770.5,0.72176]
[1749700424361,1.32113,2770.6,2770.5,0.72176]
[1749700424566,1.32115,2770.6,2770.2,7.8338]
[1749700424769,1.32115,2770.6,2770.4,0.72177]
[1749700424967,0.72176,2770.5,2770.3,0.72179]
[1749700425172,0.72176,2770.5,2770.4,0.72179]
[1749700425573,0.72181,2770.4,2770.2,3.2078]
[1749700425772,2.01701,2770.4,2770.3,21.754]
[1749700426765,3.46084989,2770.4,2770.3,21.754]
[1749700427572,3.46084989,2770.4,2770.3,22.47581]
[1749700427774,3.46084989,2770.4,2770.3,21.754]
[1749700428277,3.46084989,2770.4,2770.3,22.47581]
[1749700429277,3.46084989,2770.4,2770.3,4.6880172]
[1749700429475,3.46084989,2770.4,2770.3,22.5368272]
[1749700429671,3.46084989,2770.4,2770.3,21.8150172]
[1749700431379,2.73903989,2770.4,2770.3,22.5368272]
[1749700432382,3.46082989,2770.4,2770.3,22.5368272]
[1749700433480,3.46082989,2770.4,2770.3,0.0620172]
[1749700433682,0.72196,2769.8,2769.7,4.621]
[1749700433888,2.16579989,2769.8,2769.7,4.621]
[1749700434179,2.16579989,2769.8,2769.7,21.747]
[1749700434381,2.16579989,2769.8,2769.7,5.34297]
[1749700434582,2.16579989,2769.8,2769.7,22.46797]
[1749700434583,1.44383989,2769.8,2769.7,22.46797]
[1749700434981,3.25883989,2769.8,2769.7,22.46797]
[1749700435181,3.98077989,2769.8,2769.7,4.621]
[1749700435377,3.98077989,2769.8,2769.7,21.746]
[1749700436489,3.98077989,2769.8,2769.7,4.621]
[1749700437885,2.07733989,2769.8,2769.7,4.621]
[1749700438181,0.72178,2770.5,2769.9,1.80475]
[1749700438482,0.72178,2770.5,2770.3,0.7838172]
[1749700438685,0.72178,2770.5,2770.4,5.34279]
[1749700439085,0.72178,2770.5,2770.4,4.621]
[1749700440283,0.72178,2770.5,2770.4,5.34279]
[1749700440481,0.72178,2770.5,2770.4,4.621]
[1749700440983,0.72178,2770.5,2770.4,5.34279]
[1749700441587,0.72176,2770.5,2770.4,5.34278]
[1749700441784,3.2078,2770.7,2770.4,4.621]
[1749700441984,0.72174,2770.6,2770.5,17.84574]
[1749700442881,0.72174,2770.6,2770.5,17.124]
[1749700443887,0.72176,2770.5,2770.4,0.72179]
[1749700444083,0.72176,2770.5,2770.4,22.46579]
[1749700444281,0.72176,2770.5,2770.4,21.744]
[1749700444889,0.72179,2770.4,2770.3,3.92959]
[1749700445085,0.72179,2770.4,2770.3,25.67259]
[1749700445788,0.00541135,2770.9,2770.3,24.9508]
[1749700445986,0.00541135,2770.9,2770.7,0.7217]
[1749700445987,0.7217,2770.8,2770.7,0.7217]
[1749700446187,0.7217,2770.8,2770.7,4.621]
[1749700446687,0.72168,2770.8,2770.7,4.621]
[1749700448993,0.72168,2770.8,2770.7,5.34271]
[1749700449189,0.72168,2770.8,2770.7,4.621]
[1749700449494,0.72168,2770.8,2770.7,5.34271]
[1749700449788,0.00541135,2770.9,2770.8,0.72168]
[1749700449995,0.6747,2771.5,2771.4,0.72153]
[1749700450186,2.83955061,2771.5,2771.4,22.46253]
[1749700451897,2.83955061,2771.5,2771.4,21.741]
[1749700453096,2.83955061,2771.5,2771.4,22.46253]
[1749700453595,2.11805061,2771.5,2771.4,22.46253]
[1749700453794,1.44335061,2771.5,2771.4,22.46253]
[1749700454400,2.16485061,2771.5,2771.4,24.9488]
[1749700454693,1.44335061,2771.5,2771.4,22.46253]
[1749700455399,1.44335061,2771.5,2771.4,25.67033]
[1749700455991,0.72148,2771.6,2771.5,0.7215]
[1749700456191,2.16473149,2771.6,2771.5,0.7215]
[1749700456795,2.16474149,2771.6,2771.5,0.7215]
[1749700456993,0.7215,2771.5,2771.4,25.67031]
[1749700457194,0.72147,2771.6,2771.5,0.72148]
[1749700457394,2.16472612,2771.6,2771.5,0.72148]
[1749700457797,0.00541135,2771.7,2771.6,0.72147]
[1749700458193,0.72686135,2771.7,2771.6,0.72147]
[1749700460001,0.00541135,2771.7,2771.6,0.72147]
[1749700460801,0.72686135,2771.7,2771.6,0.72147]
[1749700461308,0.72149,2771.6,2771.5,0.72149]
[1749700461905,0.72149,2771.6,2771.5,17.83148]
[1749700462306,0.7215,2771.5,2771.4,8.6123272]
[1749700462507,0.72149,2771.6,2771.5,0.72149]
[1749700462709,0.00541135,2771.7,2771.4,21.7930172]
[1749700462909,0.00541135,2771.7,2771.6,0.72147]
[1749700463213,0.72686135,2771.7,2771.6,0.72147]
[1749700463606,0.00541135,2771.7,2771.6,0.72147]
[1749700464001,0.72686135,2771.7,2771.6,0.72147]
[1749700464910,0.00541135,2771.7,2771.6,0.72147]
[1749700465814,0.72686135,2771.7,2771.6,0.72147]
[1749700466407,0.00541135,2771.7,2771.6,0.72147]
[1749700466610,0.72686135,2771.7,2771.6,0.72147]
[1749700467313,2.17004717,2771.7,2771.6,0.72147]
[1749700467514,2.17004717,2771.7,2771.5,0.72149]
[1749700467515,0.72149,2771.6,2771.5,0.72149]
[1749700467807,0.00541135,2771.7,2771.6,0.72147]
[1749700468004,2.17006073,2771.7,2771.6,0.72147]
[1749700469812,1.44861073,2771.7,2771.6,0.72147]
[1749700470007,0.00541135,2771.7,2771.5,0.72148]
[1749700470207,0.00541135,2771.7,2771.6,0.72147]
[1749700471710,5.36780928,2772.6,2771.8,1.80356]
[1749700471910,2.11770368,2772.5,2772.4,0.72127]
[1749700472113,1.44300368,2772.5,2772.4,22.43527]
[1749700472307,0.6747,2772.8,2772.7,0.72119]
[1749700472513,2.11735134,2772.8,2772.7,0.72119]
[1749700473214,2.11735134,2772.8,2772.6,0.7212]
[1749700473410,1.39588,2772.8,2772.6,0.7212]
[1749700473809,1.44264266,2772.7,2772.6,0.7212]
[1749700474010,1.39588,2772.8,2772.7,0.72119]
[1749700474211,2.83849584,2772.8,2772.5,0.6201]
[1749700474415,1.39588,2772.8,2772.5,0.6201]
[1749700474721,0.63871135,2773.0,2772.9,0.72114]
[1749700475012,1.44799035,2773.0,2772.9,22.43414]
[1749700475409,1.44799035,2773.0,2772.9,21.713]
[1749700475609,0.00541135,2773.0,2772.9,22.43414]
[1749700475815,0.00541135,2773.0,2772.9,25.64194]
[1749700477318,0.72652135,2773.0,2772.9,24.9208]
[1749700477718,0.00541135,2773.0,2772.9,24.9208]
[1749700477920,0.72652135,2773.0,2772.9,24.9208]
[1749700478118,0.72652135,2773.0,2772.9,25.64194]
[1749700478420,2.16901039,2773.0,2772.9,24.9208]
[1749700479210,2.16901039,2773.0,2772.9,21.713]
[1749700479415,2.16901039,2773.0,2772.9,21.708]
[1749700479718,3.41081039,2773.0,2772.9,21.708]
[1749700480419,3.41081039,2773.0,2772.9,21.707]
[1749700482216,0.72116,2772.8,2772.7,0.00541135]
[1749700482416,0.72116,2772.8,2772.7,21.71041135]
[1749700482725,2.16364904,2772.8,2772.7,0.00541135]
[1749700482927,7.26534904,2772.8,2772.7,0.00541135]
[1749700483122,0.72134,2772.1,2772.0,0.0620172]
[1749700483422,3.92914,2772.1,2772.0,0.0620172]
[1749700483628,5.37216165,2772.1,2772.0,0.0620172]
[1749700483927,5.37223014,2772.1,2772.0,0.0620172]
[1749700485317,0.7214,2771.9,2771.8,0.00541135]
[1749700485620,2.16449014,2771.9,2771.8,0.00541135]
[1749700486126,3.43709014,2771.9,2771.8,0.00541135]
[1749700486319,4.08589014,2771.9,2771.8,0.00541135]
[1749700486722,2.09189014,2771.9,2771.8,22.42983135]
[1749700487029,1.44309014,2771.9,2771.8,22.42983135]
[1749700487327,1.44308516,2771.9,2771.8,22.42982135]
[1749700487527,2.16448516,2771.9,2771.8,0.00541135]
[1749700487821,3.34578516,2771.9,2771.8,4.61741135]
[1749700489126,3.34578516,2771.9,2771.8,4.67942855]
[1749700489623,2.62438516,2771.9,2771.8,4.67942855]
[1749700489822,1.44308516,2771.9,2771.8,5.40084855]
[1749700490023,1.44308516,2771.9,2771.8,8.60864855]
[1749700490221,0.72131,2772.3,2772.1,0.72132]
[1749700490421,1.44292742,2772.2,2772.1,0.72132]
[1749700490815,2.16424742,2772.2,2772.1,0.72132]
[1749700491424,1.44292742,2772.2,2772.1,0.72132]
[1749700492028,2.16424742,2772.2,2772.1,3.92912]
[1749700492224,1.44292742,2772.2,2772.1,3.92912]
[1749700492623,2.16424742,2772.2,2772.1,3.92912]
[1749700493322,1.44292742,2772.2,2772.1,3.92912]
[1749700493728,0.72131,2772.3,2772.2,0.72132]
[1749700493929,2.16419498,2772.3,2772.2,5.32432]
[1749700494426,2.16419498,2772.3,2772.2,4.603]
[1749700495036,3.38329498,2772.3,2772.2,4.603]
[1749700496522,3.38329498,2772.3,2772.2,5.32432]
[1749700496727,2.16417498,2772.3,2772.2,5.32432]
[1749700497531,2.16417498,2772.3,2772.2,4.603]
[1749700498531,3.33157498,2772.3,2772.2,4.603]
[1749700498726,0.72132,2772.2,2772.1,0.72133]
[1749700499028,2.16423745,2772.2,2772.1,21.69]
[1749700499234,0.72134,2772.1,2772.0,0.72137]
[1749700499732,0.72134,2772.1,2772.0,22.41037]
[1749700499932,2.16433991,2772.1,2772.0,22.41037]
[1749700500334,0.72134,2772.1,2772.0,22.41037]
[1749700501533,0.72134,2772.1,2772.0,0.72137]
[1749700501837,0.72138,2772.0,2771.9,0.72137]
[1749700502028,0.72138,2772.0,2771.9,22.40937]
[1749700503537,0.72138,2772.0,2771.9,4.603]
[1749700503737,0.72138,2772.0,2771.9,21.688]
[1749700504034,0.72138,2772.0,2771.9,22.4094]
[1749700504936,0.7214,2771.9,2771.8,0.00541135]
[1749700505136,0.7214,2771.9,2771.8,21.69241135]
[1749700505639,0.72138,2772.0,2771.9,0.72138]
[1749700505839,0.72138,2772.0,2771.9,17.80538]
[1749700506536,2.16439501,2772.0,2771.9,17.8673972]
[1749700507842,2.16439501,2772.0,2771.9,0.0620172]
[1749700508237,2.16439501,2772.0,2771.9,0.7834172]
[1749700508545,2.16439501,2772.0,2771.9,0.0620172]
[1749700509138,2.16439501,2772.0,2771.9,0.7834172]
[1749700509342,2.16439501,2772.0,2771.9,0.0620172]
[1749700510543,2.16444344,2772.0,2771.9,0.0620172]
[1749700516034,3.40234344,2772.0,2771.9,0.0620172]
[1749700516237,1.95928,2772.0,2771.9,0.0620172]
[1749700516535,3.40248052,2772.0,2771.9,0.0620172]
[1749700516740,1.44320052,2772.0,2771.9,0.7834172]
[1749700517544,2.16457052,2772.0,2771.9,0.7834172]
[1749700518845,1.44320052,2772.0,2771.9,0.7834172]
[1749700519241,2.16457052,2772.0,2771.9,0.7834172]
[1749700520645,2.16457052,2772.0,2771.9,0.0620172]
[1749700523749,4.3245798,2772.0,2771.9,0.0620172]
[1749700523943,5.5556798,2772.0,2771.9,0.0620172]
[1749700527348,3.39567052,2772.0,2771.9,0.0620172]
[1749700528750,3.39572736,2772.0,2771.9,0.0620172]
[1749700529152,5.55636912,2772.0,2771.9,0.0620172]
[1749700529349,4.32526912,2772.0,2771.9,0.0620172]
[1749700529559,3.60389912,2772.0,2771.9,0.0620172]
[1749700529856,1.44325736,2772.0,2771.9,0.7834172]
[1749700530457,2.16462736,2772.0,2771.9,0.0620172]
[1749700531651,2.16462736,2772.0,2771.9,0.7834172]
[1749700532454,2.16462736,2772.0,2771.9,0.0620172]
[1749700532654,2.16462736,2772.0,2771.9,0.7834172]
[1749700533354,2.16462736,2772.0,2771.9,0.0620172]
[1749700534358,3.41432736,2772.0,2771.9,0.0620172]
[1749700534663,5.57496912,2772.0,2771.9,0.0620172]
[1749700535949,3.41432736,2772.0,2771.9,0.0620172]
[1749700540168,3.41432736,2772.0,2771.3,17.7228]
[1749700540169,0.72153,2771.4,2771.3,4.593]
[1749700540368,2.16478736,2771.4,2771.3,4.593]
[1749700540566,0.72158,2771.2,2771.1,4.593]
[1749700540761,2.16483736,2771.2,2771.1,4.593]
[1749700541162,3.38773736,2771.2,2771.1,4.593]
[1749700541867,2.16483736,2771.2,2771.1,4.593]
[1749700542162,0.72163,2771.0,2770.9,17.77711135]
[1749700542363,2.16488736,2771.0,2770.9,22.37011135]
[1749700543065,2.16488736,2771.0,2770.9,21.66241135]
[1749700543466,2.16488736,2771.0,2770.9,0.00541135]
[1749700543858,2.16488736,2771.0,2770.9,4.59941135]
[1749700544058,2.16488736,2771.0,2770.9,0.00541135]
[1749700545169,3.40578736,2771.0,2770.9,0.00541135]
[1749700550369,6.61358736,2771.0,2770.9,0.00541135]
[1749700550765,0.72181,2770.3,2770.2,7.8018]
[1749700550967,2.16572561,2770.3,2770.2,7.8018]
[1749700555670,0.72186,2770.1,2770.0,0.69071135]
[1749700555868,0.72186,2770.1,2770.0,17.75171135]
[1749700556066,0.72186,2770.1,2770.0,0.69071135]
[1749700556272,0.72186,2770.1,2770.0,17.75071135]
[1749700557477,0.72186,2770.1,2770.0,0.69071135]
[1749700557773,0.72186,2770.1,2770.0,22.33671135]
[1749700558974,0.72186,2770.1,2770.0,22.33471135]
[1749700559375,0.72186,2770.1,2770.0,23.05660135]
[1749700559576,0.72186,2770.1,2770.0,22.33471135]
[1749700560276,0.72186,2770.1,2770.0,0.69071135]
[1749700560470,0.72186,2770.1,2770.0,22.33471135]
[1749700560667,2.16588862,2770.1,2770.0,5.27471135]
[1749700560869,2.16588862,2770.1,2770.0,0.00541135]
[1749700560870,0.72186,2770.1,2770.0,0.00541135]
[1749700561076,2.16588155,2770.1,2770.0,17.06441135]
[1749700561265,2.16588155,2770.1,2770.0,0.00541135]
[1749700562074,1.44402155,2770.1,2770.0,5.31130135]
[1749700562379,2.16588155,2770.1,2770.0,4.58941135]
[1749700564376,2.16589756,2770.1,2770.0,17.06341135]
[1749700564677,2.16589756,2770.1,2770.0,0.00541135]
[1749700565278,2.16589756,2770.1,2770.0,17.06341135]
[1749700565478,2.16589756,2770.1,2770.0,17.06241135]
[1749700565972,1.44403756,2770.1,2770.0,22.36830135]
[1749700566172,1.44403756,2770.1,2770.0,27.36830135]
[1749700568774,2.16589756,2770.1,2770.0,27.36830135]
[1749700568974,1.44403756,2770.1,2770.0,27.36830135]
[1749700569179,1.44403756,2770.1,2770.0,28.05100135]
[1749700569573,1.44403756,2770.1,2770.0,23.05100135]
[1749700575274,2.16589756,2770.1,2770.0,23.05100135]
[1749700575584,1.44403756,2770.1,2770.0,23.05100135]
[1749700575884,2.16589756,2770.1,2770.0,23.05100135]
[1749700576088,2.16589756,2770.1,2770.0,17.05641135]
[1749700576280,2.16589756,2770.1,2770.0,17.05541135]
[1749700576481,2.1659141,2770.1,2770.0,17.05541135]
[1749700576885,3.3478141,2770.1,2770.0,17.05541135]
[1749700577788,1.4440541,2770.1,2770.0,17.77730135]
[1749700587391,0.72177,2770.5,2770.4,0.72179]
[1749700587592,2.16560301,2770.5,2770.4,22.33779]
[1749700588387,1.44383301,2770.5,2770.4,22.33779]
[1749700588593,0.6987,2771.0,2770.9,0.72166]
[1749700588785,0.6987,2771.0,2770.9,25.54346]
[1749700589488,1.42033,2771.0,2770.9,24.8218]
[1749700590189,2.61983,2771.0,2770.9,24.8218]
[1749700590592,2.61983,2771.0,2770.9,25.54346]
[1749700591785,1.8982,2771.0,2770.9,25.54346]
[1749700592789,2.16731335,2771.4,2771.3,0.72155]
[1749700592990,0.68091135,2771.4,2771.3,17.75955]
[1749700593186,1.40244135,2771.4,2771.3,22.33155]
[1749700593496,2.65014135,2771.4,2771.3,21.61]
[1749700596791,1.92861135,2771.4,2771.3,21.61]
[1749700597093,1.92861135,2771.4,2771.3,22.33155]
[1749700597697,0.68091135,2771.4,2771.3,25.53935]
[1749700598095,0.72134,2772.2,2771.4,1.80382]
[1749700598393,0.7214,2771.9,2771.8,3.2078]
[1749700598797,0.7214,2771.9,2771.8,24.8118]
[1749700599494,0.72139,2772.0,2771.8,24.8118]
[1749700599698,1.2304,2772.0,2771.9,0.72137]
[1749700600699,3.39482028,2772.0,2771.8,25.53321]
[1749700600898,1.44303028,2771.9,2771.8,25.53321]
[1749700601100,2.16443028,2771.9,2771.8,25.53321]
[1749700601300,2.67343028,2771.9,2771.8,25.53321]
[1749700602103,1.2304,2771.9,2771.8,25.53321]
[1749700604303,1.95179,2771.9,2771.8,25.53321]
[1749700604500,1.95179,2771.9,2771.8,22.32541]
[1749700604702,1.95179,2771.9,2771.8,21.604]
[1749700605004,1.95179,2771.9,2771.8,22.32542]
[1749700605798,0.72144,2771.7,2771.6,3.93466135]
[1749700605999,0.72144,2771.7,2771.6,25.52966135]
[1749700606305,0.72144,2771.7,2771.6,17.02941135]
[1749700606601,6.44313723,2771.7,2770.8,7.7778]
[1749700606802,0.72163,2771.0,2770.9,17.74464]
[1749700606997,1.80381,2771.4,2770.8,7.7778]
[1749700606998,0.72165,2770.9,2770.8,7.7778]
[1749700607205,1.96965,2770.9,2770.8,24.8008]
[1749700607398,1.96965,2770.9,2770.1,1.80465]
[1749700607399,10.89939985,2770.9,2770.0,4.57]
[1749700607593,3.2078,2770.6,2770.4,0.72178]
[1749700607800,0.72178,2770.4,2770.2,0.72723135]
[1749700608004,1.44359985,2770.3,2770.2,0.72723135]
[1749700608206,3.41640985,2770.3,2770.2,17.02741135]
[1749700608400,3.41640985,2770.3,2770.2,0.00541135]
[1749700608607,5.90239985,2770.3,2769.9,17.74389]
[1749700608902,5.90239985,2770.3,2769.9,17.022]
[1749700608903,0.72189,2770.0,2769.9,17.022]
[1749700609096,0.72194,2769.8,2769.7,4.57]
[1749700609301,1.251,2769.9,2769.8,0.72194]
[1749700609501,2.69508391,2769.9,2769.7,22.31295]
[1749700609700,1.251,2769.9,2769.7,22.31295]
[1749700609900,4.65200147,2769.8,2769.1,7.7788]
[1749700610204,2.69520147,2769.7,2769.2,17.024]
[1749700610400,1.44420147,2769.6,2769.2,18.3152]
[1749700610602,1.251,2769.7,2769.5,0.72199]
[1749700610802,1.44422933,2769.6,2769.5,0.72199]
[1749700611105,1.251,2769.7,2769.6,0.72199]
[1749700611306,2.69524051,2769.7,2769.6,0.72199]
[1749700612107,2.69524051,2769.7,2769.5,5.293]
[1749700612405,1.251,2769.7,2769.5,4.571]
[1749700612604,1.251,2769.7,2769.6,0.72199]
[1749700612803,2.69524868,2769.7,2769.5,4.571]
[1749700613006,1.251,2769.7,2769.4,17.022]
[1749700613310,3.2078,2769.5,2769.4,17.022]
[1749700613803,5.12162,2769.5,2769.4,17.022]
[1749700614402,5.12162,2769.5,2769.3,0.72206]
[1749700614603,5.12162,2769.5,2769.3,17.74606]
[1749700614808,4.3996,2769.5,2769.4,0.72204]
[1749700615010,5.12162,2769.5,2769.3,17.74605]
[1749700615603,5.12163,2769.5,2769.3,17.74607]
[1749700615911,0.72204,2769.4,2769.3,17.024]
[1749700616205,1.2105,2769.4,2769.3,17.74605]
[1749700618811,3.2078,2769.5,2769.4,0.72204]
[1749700619215,3.92982,2769.5,2769.4,0.72204]
[1749700619812,0.72204,2769.4,2769.3,17.024]
[1749700620001,1.94144,2769.4,2769.3,17.74607]
[1749700620200,1.2194,2769.4,2769.3,17.74607]
[1749700620607,3.92982,2769.5,2769.4,0.72203]
[1749700620910,0.72203,2769.4,2769.3,17.74604]
[1749700621914,0.72203,2769.4,2769.3,17.024]
[1749700622310,1.94143,2769.4,2769.3,17.024]
[1749700622616,0.7222,2768.8,2768.7,5.2133]
[1749700622912,0.7222,2768.8,2768.7,22.95952]
[1749700623114,0.7222,2768.8,2768.7,22.30722]
[1749700623410,0.7222,2768.8,2768.7,21.585]
[1749700624216,0.72224,2768.7,2768.6,4.561]
[1749700624412,0.72224,2768.7,2768.6,22.30723]
[1749700625711,3.93001,2768.8,2768.7,0.72222]
[1749700625911,3.93001,2768.8,2768.7,17.74622]
[1749700626120,3.93001,2768.8,2768.7,17.024]
[1749700626914,0.72222,2768.7,2768.6,4.561]
[1749700627310,0.72234,2768.3,2768.2,17.023]
[1749700627513,0.72238,2768.1,2768.0,4.562]
[1749700627708,0.72238,2768.1,2768.0,21.585]
[1749700628111,0.72238,2768.1,2768.0,4.562]
[1749700628309,0.72247,2767.8,2767.6,4.562]
[1749700628521,0.72247,2767.8,2767.7,17.024]
[1749700629113,1.89697,2767.8,2767.7,17.024]
[1749700629510,0.72248,2767.7,2767.6,4.562]
[1749700629915,0.72251,2767.6,2767.5,17.024]
[1749700630122,1.89701,2767.6,2767.5,17.023]
[1749700630315,0.72256,2767.4,2767.3,4.562]
[1749700630717,0.72267,2767.0,2766.9,21.585]
[1749700631216,3.2078,2767.5,2766.9,26.585]
[1749700631416,3.2078,2767.5,2767.4,0.72256]
[1749700631617,3.2078,2767.5,2767.4,17.74556]
[1749700632222,3.2078,2767.5,2767.4,0.72256]
[1749700632421,3.2078,2767.5,2767.4,17.74856]
[1749700632723,3.2078,2768.0,2767.9,0.72243]
[1749700632918,3.2078,2768.3,2768.2,0.72234]
[1749700633115,4.6528434,2768.3,2768.2,0.72235]
[1749700633714,3.2078,2768.3,2768.2,0.72235]
[1749700634623,4.65269152,2768.3,2768.2,0.72235]
[1749700635513,4.65269152,2768.3,2768.0,0.00541135]
[1749700635812,1.44489152,2768.2,2768.1,0.72236]
[1749700636617,3.2078,2768.3,2768.0,0.00541135]
[1749700636618,3.2078,2768.3,2768.2,0.72235]
[1749700636818,4.65276085,2768.3,2768.2,0.72235]
[1749700640223,4.65276085,2768.3,2768.2,1.39105]
[1749700640423,4.71477805,2768.3,2768.2,1.39105]
[1749700642230,1.50697805,2768.3,2768.2,1.39105]
[1749700644029,1.50697805,2768.3,2768.2,22.97705]
[1749700644324,2.22930805,2768.3,2768.2,22.97605]
[1749700644520,5.43710805,2768.3,2768.2,22.97605]
[1749700644722,1.50697805,2768.3,2768.2,22.30635]
[1749700648231,3.66888005,2768.3,2768.2,22.30635]
[1749700649332,3.66888005,2768.3,2768.2,4.564]
[1749700649333,5.43710805,2768.3,2768.2,4.564]
[1749700649528,6.69150805,2768.3,2768.2,21.582]
[1749700649727,7.37470805,2768.3,2768.2,21.582]
[1749700650332,7.37470805,2768.3,2768.2,21.581]
[1749700650529,7.37470805,2768.3,2768.2,4.564]
[1749700650730,7.37470805,2768.3,2768.2,21.581]
[1749700651334,0.72238,2768.1,2768.0,0.00541135]
[1749700651634,2.15750668,2768.1,2768.0,0.72781135]
[1749700651841,3.60254205,2768.1,2768.0,0.72781135]
[1749700652135,3.60254205,2768.1,2768.0,17.74381135]
[1749700652936,4.32492205,2768.1,2768.0,17.74381135]
[1749700653237,3.60254205,2768.1,2768.0,17.02141135]
[1749700653538,2.16741537,2768.1,2768.0,17.02241135]
[1749700654033,2.16741537,2768.1,2768.0,0.00541135]
[1749700654238,2.16741537,2768.1,2768.0,17.02141135]
[1749700655229,2.16741537,2768.1,2768.0,17.74381135]
[1749700655430,2.22943257,2768.1,2768.0,17.74381135]
[1749700655740,2.22943257,2768.1,2768.0,17.02141135]
[1749700656434,2.22943257,2768.1,2768.0,17.02041135]
[1749700658936,2.22943257,2768.1,2768.0,17.74281135]
[1749700659230,4.3895099,2768.1,2768.0,17.01941135]
[1749700659437,2.22943257,2768.1,2768.0,17.01941135]
[1749700660228,3.51793257,2768.1,2768.0,17.01941135]
[1749700660732,5.67876062,2768.1,2768.0,17.01941135]
[1749700660937,5.67876062,2768.1,2768.0,17.74181135]
[1749700661138,3.51793257,2768.1,2768.0,17.74181135]
[1749700661338,5.67876062,2768.1,2768.0,17.74181135]
[1749700661535,3.51793257,2768.1,2768.0,17.74181135]
[1749700662036,2.22943257,2768.1,2768.0,17.74181135]
[1749700662340,1.50705257,2768.1,2768.0,17.74181135]
[1749700663047,2.51843257,2768.1,2768.0,17.74181135]
[1749700665443,1.79605257,2768.1,2768.0,17.74181135]
[1749700666144,2.51843257,2768.1,2768.0,17.74181135]
[1749700668244,2.51843257,2768.1,2768.0,17.01941135]
[1749700668548,2.51843257,2768.1,2768.0,21.56841135]
[1749700669247,2.51843257,2768.1,2768.0,22.29081135]
[1749700669441,2.51843257,2768.1,2768.0,0.72781135]
[1749700669643,2.51843257,2768.1,2768.0,22.28981135]